fUSD/lending_fUSD_20250720
["ID","MTS","AMOUNT","RATE_DAILY","PERIOD"]
[373586069,1753055439676,-150.0,0.00017374,2]
[373586071,1753055439685,-2802.19286535,0.00017433,2]
[373586073,1753055439694,-1017.71714839,0.00017433,2]
[373586075,1753055439704,-150.0,0.00017434,2]
[373586077,1753055439713,-150.0,0.00017444,2]
[373586079,1753055439722,-151.0,0.00017476,2]
[373586081,1753055439732,-151.0,0.00017486,2]
[373586083,1753055439744,-352.0,0.000175,2]
[373586085,1753055439753,-150.0,0.00017503,2]
[373586087,1753055439764,-3003.0,0.00017503,2]
[373586089,1753055439773,-150.0,0.00017503,2]
[373586090,1753055439782,-150.0,0.00017503,2]
[373586092,1753055439792,-1757.0,0.00017503,2]
[373586094,1753055439801,-150.0,0.00017515,2]
[373586096,1753055439810,-150.0,0.00017534,2]
[373586098,1753055439818,-500.0,0.00017534,2]
[373586100,1753055439828,-150.0,0.00017534,2]
[373586102,1753055439839,-573.2953325,0.00017534,2]
[373586105,1753055439848,-150.0,0.00017534,2]
[373586106,1753055439858,-500.0,0.00017534,2]
[373586108,1753055439867,-500.0,0.00017534,2]
[373586109,1753055439876,-151.03090369,0.00017534,2]
[373586110,1753055439885,-150.0,0.00017534,2]
[373586111,1753055439894,-500.0,0.00017534,2]
[373586112,1753055439914,-1040.0,0.00017534,2]
[373586113,1753055439924,-150.0,0.00017534,2]
[373586114,1753055439934,-150.0,0.00017534,2]
[373586115,1753055439943,-939.0,0.00017534,2]
[373586116,1753055439953,-150.0,0.00017543,2]
[373586117,1753055439963,-150.0,0.00017585,2]
[373586118,1753055439972,-150.69874847,0.00017631,2]
[373586119,1753055439982,-150.0,0.00017631,2]
[373586120,1753055439991,-151.83705436,0.00017631,2]
[373586122,1753055440001,-150.0,0.00017638,2]
[373586124,1753055440012,-208.13366706,0.0001765,2]
[373586126,1753055440022,-150.0,0.00017656,2]
[373586128,1753055440031,-2802.19286535,0.00017699,2]
[373586130,1753055440041,-1017.71714839,0.00017699,2]
[373586132,1753055440051,-151.0,0.00017699,2]
[373586134,1753055440060,-151.0,0.00017699,2]
[373586136,1753055440070,-150.0,0.00017706,2]
[373586138,1753055440079,-252.33179126,0.00017717,2]
[373586140,1753055440089,-150.0,0.00017727,2]
[373586142,1753055440098,-1050.30529539,0.00017743,5]
[373586144,1753055440107,-1000.0,0.00017744,2]
[373586146,1753055440117,-151.0,0.00017744,2]
[373586148,1753055440126,-164.855416,0.00017745,2]
[373586150,1753055440135,-164.855416,0.00017745,2]
[373586152,1753055440145,-215.931244,0.00017745,2]
[373586154,1753055440154,-150.0,0.00017777,2]
[373586156,1753055440164,-3003.0,0.00017777,2]
[373586158,1753055440173,-200.0,0.00017777,2]
[373586161,1753055440182,-200.0,0.00017777,2]
[373586163,1753055440192,-1757.0,0.00017777,2]
[373586165,1753055440202,-151.0,0.00017797,2]
[373586167,1753055440211,-151.0,0.00017797,2]
[373586169,1753055440221,-151.0,0.00017797,2]
[373586171,1753055440230,-151.0,0.00017797,2]
[373586173,1753055440239,-280.90036,0.00017797,2]
[373586175,1753055440249,-151.0,0.00017797,2]
[373586177,1753055440259,-150.0,0.00017797,2]
[373586179,1753055440268,-150.0,0.00017797,2]
[373586181,1753055440278,-150.0,0.00017797,2]
[373586183,1753055440287,-150.0,0.00017797,2]
[373586185,1753055440296,-154.88076955,0.00017801,2]
[373586187,1753055440306,-399.20194727,0.00017803,2]
[373586189,1753055440316,-172.58,0.00017803,2]
[373586191,1753055440326,-150.0,0.00017808,2]
[373586193,1753055440335,-500.0,0.00017808,2]
[373586195,1753055440345,-150.77859184,0.00017808,2]
[373586197,1753055440355,-150.0,0.00017808,2]
[373586199,1753055440365,-500.0,0.00017808,2]
[373586201,1753055440374,-500.0,0.00017808,2]
[373586203,1753055440384,-187.76075689,0.00017808,2]
[373586205,1753055440394,-500.0,0.00017808,2]
[373586207,1753055440404,-1040.0,0.00017808,2]
[373586209,1753055440414,-200.0,0.00017808,2]
[373586211,1753055440424,-233.98916447,0.00017808,2]
[373586213,1753055440433,-939.0,0.00017808,2]
[373586215,1753055440444,-229.3,0.00017812,2]
[373586217,1753055440454,-1059.35210174,0.00017827,5]
[373586219,1753055440463,-4668.66954,0.0001783,2]
[373586221,1753055440473,-150.0,0.00017868,2]
[373586223,1753055440483,-250.0,0.00017868,2]
[373586225,1753055440493,-300.0,0.00017868,2]
[373586227,1753055440502,-3097.2,0.000179,2]
[373586229,1753055440513,-151.0,0.000179,2]
[373586231,1753055440522,-151.0,0.000179,2]
[373586233,1753055440532,-181.864333,0.000179,2]
[373586235,1753055440541,-181.864333,0.000179,2]
[373586237,1753055440551,-170.67281,0.000179,2]
[373586239,1753055440561,-170.67281,0.000179,2]
[373586241,1753055440572,-1803.21487,0.000179,2]
[373586244,1753055440581,-1803.21487,0.000179,2]
[373586246,1753055440591,-151.0,0.000179,2]
[373586248,1753055440601,-151.709419,0.000179,2]
[373586250,1753055440610,-151.0,0.000179,2]
[373586252,1753055440619,-151.0,0.000179,2]
[373586254,1753055440629,-151.0,0.000179,2]
[373586256,1753055440638,-151.0,0.000179,2]
[373586258,1753055440648,-151.0,0.000179,2]
[373586260,1753055440658,-151.0,0.000179,2]
[373586262,1753055440667,-151.0,0.000179,2]
[373586264,1753055440677,-151.0,0.000179,2]
[373586266,1753055440686,-151.0,0.000179,2]
[373586268,1753055440695,-151.0,0.000179,2]
[373586270,1753055440705,-151.0,0.000179,2]
[373586272,1753055440714,-151.91655,0.000179,2]
[373586274,1753055440724,-500.0,0.000179,6]
[373586276,1753055440736,-151.0,0.000179,2]
[373586278,1753055440746,-151.0,0.000179,2]
[373586280,1753055440756,-189.21455578,0.00017905,2]
[373586282,1753055440767,-150.0,0.00017924,2]
[373586284,1753055440777,-150.0,0.00017939,2]
[373586286,1753055440787,-214.67747725,0.00017946,2]
[373586288,1753055440797,-2802.19286535,0.00017965,2]
[373586290,1753055440806,-1017.71714839,0.00017965,2]
[373586292,1753055440819,-150.0,0.00017979,2]
[373586294,1753055440829,-5000.0,0.00018,2]
[373586296,1753055440839,-151.0,0.00018,2]
[373586298,1753055440848,-151.0,0.00018,2]
[373586300,1753055440857,-668.868213,0.00018,2]
[373586302,1753055440867,-668.868213,0.00018,2]
[373586304,1753055440876,-465.17,0.00018009,2]
[373586306,1753055440885,-815.42,0.00018009,2]
[373586309,1753055440895,-465.17,0.00018009,2]
[373586311,1753055440904,-465.17,0.00018009,2]
[373586313,1753055440913,-150.0,0.00018009,2]
[373586315,1753055440923,-151.0,0.0001802,2]
[373586317,1753055440933,-151.0,0.0001802,2]
[373586319,1753055440942,-151.0,0.0001802,2]
[373586321,1753055440951,-298.337262,0.0001802,2]
[373586323,1753055440961,-4468.22431268,0.0001802,2]
[373586325,1753055440970,-500.0,0.00018046,2]
[373586327,1753055440980,-243.23330792,0.00018046,2]
[373586329,1753055440989,-889.42,0.00018048,2]
[373586331,1753055440999,-151.0,0.00018048,2]
[373586333,1753055441008,-150.0,0.00018051,2]
[373586335,1753055441019,-3003.0,0.00018051,2]
[373586337,1753055441029,-1757.0,0.00018051,2]
[373586339,1753055441038,-343.0,0.00018064,2]
[373586341,1753055441048,-150.0,0.0001808,2]
[373586343,1753055441057,-151.34256815,0.00018082,2]
[373586345,1753055441067,-450.0,0.00018082,2]
[373586347,1753055441076,-500.0,0.00018082,2]
[373586349,1753055441085,-352.04412336,0.00018082,2]
[373586351,1753055441095,-500.0,0.00018082,2]
[373586353,1753055441104,-1040.0,0.00018082,2]
[373586355,1753055441113,-939.0,0.00018082,2]
[373586357,1753055441123,-150.0,0.00018115,2]
[373586359,1753055441132,-150.0,0.00018115,2]
[373586361,1753055441141,-150.0,0.00018115,2]
[373586363,1753055441151,-150.0,0.00018115,2]
[373586365,1753055441160,-500.0,0.00018123,2]
[373586367,1753055441169,-150.0,0.00018123,2]
[373586369,1753055441178,-343.0,0.00018123,2]
[373586371,1753055441188,-150.0,0.0001815,2]
[373586373,1753055441197,-250.0,0.0001818,2]
[373586375,1753055441207,-1000.0,0.0001818,2]
[373586377,1753055441216,-300.0,0.0001818,2]
[373586379,1753055441226,-300.0,0.0001818,2]
[373586381,1753055441235,-343.0,0.0001821,2]
[373586383,1753055441245,-150.0,0.00018221,2]
[373586385,1753055441254,-2802.19286535,0.00018232,2]
[373586387,1753055441265,-1017.71714839,0.00018232,2]
[373586389,1753055441274,-151.0,0.00018237,2]
[373586391,1753055441284,-151.0,0.00018237,2]
[373586393,1753055441293,-1218.465155,0.00018237,2]
[373586395,1753055441302,-151.0,0.00018237,2]
[373586397,1753055441312,-271.254919,0.00018237,2]
[373586399,1753055441322,-151.0,0.00018237,2]
[373586402,1753055441331,-151.0,0.00018237,2]
[373586404,1753055441340,-151.0,0.00018237,2]
[373586405,1753055441350,-151.0,0.00018237,2]
[373586408,1753055441359,-366.681682,0.00018237,2]
[373586409,1753055441368,-366.681682,0.00018237,2]
[373586411,1753055441378,-151.0,0.00018237,2]
[373586413,1753055441388,-151.0,0.00018237,2]
[373586416,1753055441397,-151.0,0.00018237,2]
[373586418,1753055441407,-892.60596,0.00018237,2]
[373586420,1753055441416,-151.0,0.00018237,2]
[373586421,1753055441426,-150.0,0.00018237,2]
[373586424,1753055441435,-500.0,0.00018237,2]
[373586426,1753055441444,-150.0,0.00018237,2]
[373586428,1753055441454,-150.0,0.00018237,2]
[373586430,1753055441463,-151.0,0.00018237,2]
[373586432,1753055441473,-150.0,0.00018237,2]
[373586434,1753055441483,-150.0,0.00018237,2]
[373586436,1753055441492,-215.599305,0.00018237,2]
[373586438,1753055441502,-215.599305,0.00018237,2]
[373586440,1753055441512,-151.0,0.00018237,2]
[373586442,1753055441523,-181.864333,0.00018237,2]
[373586444,1753055441532,-181.864333,0.00018237,2]
[373586446,1753055441541,-151.0,0.00018237,2]
[373586448,1753055441551,-151.0,0.00018237,2]
[373586450,1753055441560,-170.67281,0.00018237,2]
[373586452,1753055441570,-170.67281,0.00018237,2]
[373586454,1753055441579,-1803.21487,0.00018237,2]
[373586456,1753055441589,-1803.21487,0.00018237,2]
[373586458,1753055441598,-151.0,0.00018237,2]
[373586460,1753055441608,-151.0,0.00018237,2]
[373586462,1753055441617,-151.0,0.00018237,2]
[373586464,1753055441627,-151.0,0.00018237,2]
[373586466,1753055441636,-164.855416,0.00018237,2]
[373586468,1753055441646,-164.855416,0.00018237,2]
[373586470,1753055441655,-151.0,0.00018237,2]
[373586472,1753055441665,-151.0,0.00018237,2]
[373586474,1753055441674,-151.0,0.00018237,2]
[373586476,1753055441683,-151.0,0.00018237,2]
[373586478,1753055441693,-248.536803,0.00018237,2]
[373586480,1753055441702,-248.536803,0.00018237,2]
[373586482,1753055441711,-151.0,0.00018237,2]
[373586484,1753055441721,-151.0,0.00018237,2]
[373586486,1753055441731,-151.0,0.00018237,2]
[373586488,1753055441745,-151.0,0.00018237,2]
[373586490,1753055441755,-151.0,0.00018237,2]
[373586492,1753055441766,-151.468273,0.00018237,2]
[373586494,1753055441775,-154.587146,0.00018237,2]
[373586496,1753055441785,-151.0,0.00018237,2]
[373586498,1753055441795,-151.0,0.00018237,2]
[373586500,1753055441804,-254.398619,0.00018237,2]
[373586502,1753055441814,-151.0,0.00018237,2]
[373586504,1753055441823,-151.0,0.00018237,2]
[373586506,1753055441833,-151.0,0.00018237,2]
[373586508,1753055441842,-668.868213,0.00018237,2]
[373586510,1753055441852,-668.868213,0.00018237,2]
[373586512,1753055441861,-600.0,0.00018237,2]
[373586514,1753055441871,-7142.856,0.00018237,2]
[373586516,1753055441881,-500.0,0.00018237,2]
[373586518,1753055441891,-500.0,0.00018237,2]
[373586520,1753055441901,-500.0,0.00018237,2]
[373586522,1753055441910,-500.0,0.00018237,2]
[373586524,1753055441919,-500.0,0.00018237,2]
[373586526,1753055441928,-500.0,0.00018237,2]
[373586528,1753055441938,-346.92554585,0.00018237,2]
[373586530,1753055441947,-500.0,0.00018237,2]
[373586532,1753055441956,-151.0,0.00018237,2]
[373586534,1753055441966,-500.0,0.00018237,2]
[373586536,1753055441975,-500.0,0.00018237,2]
[373586538,1753055441985,-500.0,0.00018237,2]
[373586540,1753055441994,-500.0,0.00018237,2]
[373586542,1753055442003,-500.0,0.00018237,2]
[373586544,1753055442014,-500.0,0.00018237,2]
[373586547,1753055442023,-500.0,0.00018237,2]
[373586548,1753055442033,-500.0,0.00018237,2]
[373586551,1753055442042,-500.0,0.00018237,2]
[373586553,1753055442052,-231.28369723,0.00018237,2]
[373586555,1753055442061,-164.855416,0.00018242,2]
[373586557,1753055442071,-164.855416,0.00018242,2]
[373586559,1753055442080,-343.0,0.00018242,2]
[373586561,1753055442089,-214.31,0.00018248,2]
[373586563,1753055442098,-154.88076955,0.00018251,2]
[373586565,1753055442108,-150.0,0.00018251,2]
[373586567,1753055442117,-1680.0,0.00018253,2]
[373586569,1753055442127,-399.20194727,0.00018255,2]
[373586571,1753055442136,-150.0,0.00018292,2]
[373586573,1753055442145,-150.0,0.00018306,2]
[373586575,1753055442154,-500.0,0.0001832,2]
[373586577,1753055442164,-151.0,0.0001832,2]
[373586579,1753055442173,-151.0,0.0001832,2]
[373586581,1753055442182,-253.7326235,0.00018325,2]
[373586583,1753055442191,-3003.0,0.00018325,2]
[373586585,1753055442201,-1757.0,0.00018325,2]
[373586587,1753055442210,-178.61,0.00018329,2]
[373586589,1753055442219,-500.0,0.00018356,2]
[373586591,1753055442229,-500.0,0.00018356,2]
[373586593,1753055442238,-1040.0,0.00018356,2]
[373586595,1753055442247,-939.0,0.00018356,2]
[373586597,1753055442256,-150.0,0.00018362,2]
[373586599,1753055442269,-151.0,0.00018379,2]
[373586601,1753055442278,-151.0,0.00018379,2]
[373586603,1753055442287,-500.0,0.00018397,2]
[373586605,1753055442296,-151.0,0.00018397,2]
[373586607,1753055442306,-151.0,0.00018397,2]
[373586609,1753055442315,-151.0,0.00018397,2]
[373586611,1753055442325,-151.0,0.00018397,2]
[373586614,1753055442334,-151.0,0.00018397,2]
[373586617,1753055442343,-151.0,0.00018397,2]
[373586621,1753055442352,-668.868213,0.00018397,2]
[373586625,1753055442361,-668.868213,0.00018397,2]
[373586629,1753055442370,-1000.0,0.00018399,2]
[373586632,1753055442380,-151.0,0.00018399,2]
[373586635,1753055442389,-151.0,0.00018399,2]
[373586638,1753055442399,-151.0,0.00018399,2]
[373586640,1753055442408,-208.13366706,0.000184,2]
[373586642,1753055442418,-150.0,0.00018433,2]
[373586644,1753055442427,-150.0,0.00018433,2]
[373586646,1753055442436,-150.0,0.00018433,2]
[373586648,1753055442445,-150.0,0.00018433,2]
[373586650,1753055442455,-394.8,0.00018446,2]
[373586652,1753055442464,-2802.19286535,0.00018498,2]
[373586654,1753055442474,-1017.71714839,0.00018498,2]
[373586656,1753055442483,-150.0,0.00018504,2]
[373586658,1753055442492,-320.64125572,0.00018504,2]
[373586660,1753055442502,-150.0,0.00018509,2]
[373586662,1753055442513,-150.0,0.00018511,2]
[373586664,1753055442522,-500.0,0.00018511,2]
[373586666,1753055442531,-150.0,0.00018511,2]
[373586668,1753055442541,-150.0,0.00018511,2]
[373586670,1753055442550,-150.0,0.00018511,2]
[373586672,1753055442560,-150.0,0.00018524,2]
[373586674,1753055442569,-600.0,0.00018555,2]
[373586676,1753055442579,-600.0,0.00018555,2]
[373586678,1753055442588,-157.54,0.00018555,2]
[373586680,1753055442598,-150.0,0.00018574,2]
[373586682,1753055442607,-263.1794129,0.00018585,2]
[373586684,1753055442617,-150.0,0.00018592,2]
[373586686,1753055442627,-150.0,0.00018594,2]
[373586688,1753055442636,-3003.0,0.00018599,2]
[373586690,1753055442645,-1757.0,0.00018599,2]
[373586692,1753055442655,-1100.0,0.000186,6]
[373586694,1753055442665,-588.0,0.00018612,2]
[373586696,1753055442674,-229.3,0.00018622,2]
[373586698,1753055442683,-343.0,0.00018626,2]
[373586700,1753055442693,-500.0,0.0001863,2]
[373586702,1753055442703,-500.0,0.0001863,2]
[373586704,1753055442712,-1040.0,0.0001863,2]
[373586706,1753055442721,-939.0,0.0001863,2]
[373586708,1753055442731,-1000.0,0.0001863,2]
[373586710,1753055442743,-150.0,0.00018645,2]
[373586712,1753055442753,-151.0,0.00018659,2]
[373586714,1753055442764,-151.0,0.00018659,2]
[373586716,1753055442773,-179.479515,0.00018659,2]
[373586717,1753055442782,-151.0,0.00018659,2]
[373586718,1753055442791,-500.0,0.00018671,2]
[373586719,1753055442801,-151.0,0.00018671,2]
[373586720,1753055442810,-150.0,0.00018687,2]
[373586721,1753055442819,-151.0,0.00018689,2]
[373586722,1753055442828,-181.864333,0.00018689,2]
[373586723,1753055442837,-181.864333,0.00018689,2]
[373586724,1753055442846,-170.67281,0.00018689,2]
[373586725,1753055442855,-170.67281,0.00018689,2]
[373586726,1753055442864,-1803.21487,0.00018689,2]
[373586727,1753055442873,-1803.21487,0.00018689,2]
[373586728,1753055442883,-151.0,0.00018689,2]
[373586730,1753055442893,-241.792228,0.00018689,2]
[373586731,1753055442903,-911.619445,0.00018698,2]
[373586733,1753055442912,-24324.3757341,0.000187,2]
[373586735,1753055442921,-151.0,0.000187,2]
[373586737,1753055442931,-151.0,0.000187,2]
[373586739,1753055442941,-151.0,0.000187,2]
[373586741,1753055442950,-151.0,0.000187,2]
[373586743,1753055442959,-151.0,0.000187,2]
[373586745,1753055442969,-221.653902,0.000187,2]
[373586747,1753055442978,-151.0,0.000187,2]
[373586749,1753055442987,-151.0,0.000187,2]
[373586751,1753055442997,-1218.465155,0.000187,2]
[373586753,1753055443006,-151.0,0.000187,2]
[373586755,1753055443019,-151.0,0.000187,2]
[373586757,1753055443029,-245.058221,0.000187,2]
[373586759,1753055443039,-151.0,0.000187,2]
[373586761,1753055443048,-151.0,0.000187,2]
[373586763,1753055443057,-366.681682,0.000187,2]
[373586765,1753055443067,-366.681682,0.000187,2]
[373586767,1753055443076,-151.0,0.000187,2]
[373586769,1753055443085,-151.0,0.000187,2]
[373586771,1753055443094,-161.6572,0.000187,2]
[373586773,1753055443104,-892.60596,0.000187,2]
[373586775,1753055443113,-159.13023,0.000187,2]
[373586777,1753055443122,-151.0,0.000187,2]
[373586779,1753055443131,-215.599305,0.000187,2]
[373586781,1753055443140,-215.599305,0.000187,2]
[373586783,1753055443149,-151.0,0.000187,2]
[373586785,1753055443158,-151.0,0.000187,2]
[373586787,1753055443167,-181.864333,0.000187,2]
[373586789,1753055443177,-181.864333,0.000187,2]
[373586791,1753055443187,-151.0,0.000187,2]
[373586793,1753055443197,-170.67281,0.000187,2]
[373586795,1753055443207,-170.67281,0.000187,2]
[373586797,1753055443216,-1803.21487,0.000187,2]
[373586799,1753055443226,-1803.21487,0.000187,2]
[373586801,1753055443235,-152.527561,0.000187,2]
[373586803,1753055443245,-151.0,0.000187,2]
[373586805,1753055443254,-151.0,0.000187,2]
[373586807,1753055443267,-151.0,0.000187,2]
[373586809,1753055443276,-164.855416,0.000187,2]
[373586811,1753055443285,-164.855416,0.000187,2]
[373586813,1753055443294,-151.0,0.000187,2]
[373586840,1753055443542,-151.0,0.000187,2]
[373586842,1753055443552,-151.0,0.000187,2]
[373586844,1753055443562,-248.536803,0.000187,2]
[373586846,1753055443571,-248.536803,0.000187,2]
[373586848,1753055443580,-151.0,0.000187,2]
[373586850,1753055443589,-151.0,0.000187,2]
[373586852,1753055443599,-151.0,0.000187,2]
[373586854,1753055443609,-151.0,0.000187,2]
[373586857,1753055443618,-1700.0,0.000187,6]
[373586859,1753055443627,-151.0,0.000187,2]
[373586861,1753055443637,-151.0,0.000187,2]
[373586863,1753055443647,-151.0,0.000187,2]
[373586865,1753055443657,-668.868213,0.000187,2]
[373586867,1753055443666,-154.88076955,0.00018701,2]
[373586869,1753055443675,-343.0,0.00018702,2]
[373586871,1753055443685,-399.20194727,0.00018708,2]
[373586873,1753055443695,-150.0,0.00018715,2]
[373586875,1753055443704,-249.1,0.00018718,2]
[373586877,1753055443714,-1000.0,0.00018721,2]
[373586879,1753055443723,-588.0,0.00018738,2]
[373586881,1753055443733,-150.0,0.00018738,2]
[373586883,1753055443747,-343.0,0.00018744,2]
[373586885,1753055443756,-2802.19286535,0.00018764,2]
[373586887,1753055443769,-1017.71714839,0.00018764,2]
[373586889,1753055443779,-345.0,0.0001878,2]
[373586891,1753055443788,-150.0,0.00018783,2]
[373586893,1753055443798,-200.0,0.00018785,2]
[373586895,1753055443807,-500.0,0.00018785,2]
[373586897,1753055443818,-200.0,0.00018785,2]
[373586899,1753055443828,-200.0,0.00018785,2]
[373586902,1753055443838,-200.0,0.00018785,2]
[373586904,1753055443847,-151.0,0.00018785,2]
[373586905,1753055443857,-151.344684,0.00018785,2]
[373586908,1753055443866,-164.855416,0.00018785,2]
[373586910,1753055443875,-164.855416,0.00018785,2]
[373586912,1753055443885,-151.0,0.00018785,2]
[373586913,1753055443894,-151.0,0.00018785,2]
[373586916,1753055443904,-151.0,0.00018785,2]
[373586918,1753055443913,-151.0,0.00018785,2]
[373586919,1753055443922,-151.0,0.00018785,2]
[373586922,1753055443932,-151.0,0.00018785,2]
[373586924,1753055443941,-151.0,0.00018785,2]
[373586926,1753055443951,-151.0,0.00018785,2]
[373586928,1753055443960,-151.0,0.00018785,2]
[373586930,1753055443969,-600.0,0.00018785,2]
[373586932,1753055443978,-7407.141672,0.00018785,2]
[373586934,1753055443987,-150.0,0.00018786,2]
[373586936,1753055443997,-668.868213,0.00018786,2]
[373586938,1753055444006,-150.0,0.00018796,2]
[373586940,1753055444016,-6601.22,0.000188,2]
[373586942,1753055444025,-2300.0,0.000188,6]
[373586944,1753055444034,-394.8,0.00018812,2]
[373586946,1753055444043,-4668.66955,0.0001883,2]
[373586948,1753055444052,-150.0,0.00018842,2]
[373586950,1753055444062,-150.0,0.00018857,2]
[373586952,1753055444071,-588.0,0.00018865,2]
[373586954,1753055444081,-3003.0,0.00018873,2]
[373586956,1753055444090,-1757.0,0.00018873,2]
[373586958,1753055444100,-319.22724075,0.00018877,2]
[373586960,1753055444110,-157.48608689,0.00018878,2]
[373586962,1753055444119,-5000.0,0.00018878,2]
[373586964,1753055444129,-200.0,0.00018878,2]
[373586966,1753055444138,-445.57719593,0.00018881,2]
[373586968,1753055444147,-523.81893426,0.0001889,2]
[373586970,1753055444157,-200.0,0.00018899,2]
[373586972,1753055444167,-200.0,0.00018899,2]
[373586974,1753055444176,-202.46840791,0.000189,2]
[373586976,1753055444185,-202.46840791,0.000189,2]
[373586978,1753055444195,-202.46840791,0.000189,2]
[373586980,1753055444204,-202.46840791,0.000189,2]
[373586981,1753055444214,-202.46840791,0.000189,2]
[373586983,1753055444223,-202.46840791,0.000189,2]
[373586985,1753055444232,-202.46840791,0.000189,2]
[373586986,1753055444242,-202.46840791,0.000189,2]
[373586988,1753055444251,-202.46840791,0.000189,2]
[373586990,1753055444260,-202.46840791,0.000189,2]
[373586992,1753055444271,-202.46840791,0.000189,2]
[373586994,1753055444280,-2800.0,0.000189,6]
[373586995,1753055444289,-202.46840791,0.000189,2]
[373586997,1753055444298,-202.46840791,0.000189,2]
[373586999,1753055444308,-202.46840791,0.000189,2]
[373587001,1753055444317,-202.46840791,0.000189,2]
[373587002,1753055444326,-500.0,0.00018904,2]
[373587004,1753055444336,-500.0,0.00018904,2]
[373587006,1753055444349,-1040.0,0.00018904,2]
[373587008,1753055444359,-939.0,0.00018904,2]
[373587010,1753055444369,-200.0,0.00018905,2]
[373587012,1753055444379,-200.0,0.00018908,2]
[373587013,1753055444389,-319.22724075,0.00018909,2]
[373587015,1753055444399,-150.0,0.0001891,2]
[373587017,1753055444409,-1531.39498018,0.00018913,2]
[373587019,1753055444420,-445.57719593,0.00018914,2]
[373587021,1753055444430,-200.0,0.00018914,2]
[373587023,1753055444439,-600.0,0.00018915,2]
[373587025,1753055444449,-600.0,0.00018915,2]
[373587026,1753055444459,-157.54,0.00018915,2]
[373587028,1753055444470,-200.0,0.00018916,2]
[373587030,1753055444480,-200.0,0.00018921,2]
[373587032,1753055444490,-210.86573235,0.00018927,2]
[373587034,1753055444500,-839.31074571,0.00018927,2]
[373587036,1753055444510,-476.8747822,0.00018927,2]
[373587038,1753055444521,-160.0,0.00018927,2]
[373587040,1753055444531,-151.0,0.00018927,2]
[373587041,1753055444541,-151.0,0.00018927,2]
[373587043,1753055444551,-215.599305,0.00018927,2]
[373587045,1753055444561,-215.599305,0.00018927,2]
[373587047,1753055444571,-151.0,0.00018927,2]
[373587049,1753055444581,-151.0,0.00018927,2]
[373587050,1753055444591,-150.0,0.00018927,2]
[373587052,1753055444600,-319.22724075,0.0001893,2]
[373587054,1753055444610,-151.0,0.0001893,2]
[373587056,1753055444620,-77.8046835,0.0001893,2]
[373587063,1753055444695,-288.8769985,0.0001893,2]
[373587065,1753055444706,-366.681682,0.0001893,2]
[373587067,1753055444716,-151.0,0.0001893,2]
[373587069,1753055444725,-892.60596,0.0001893,2]
[373587071,1753055444735,-892.60596,0.0001893,2]
[373587073,1753055444747,-151.0,0.0001893,2]
[373587074,1753055444757,-1531.39498018,0.00018935,2]
[373587076,1753055444769,-500.0,0.00018945,2]
[373587078,1753055444778,-219.645882,0.00018945,2]
[373587080,1753055444787,-151.0,0.00018945,2]